bitfinex/quotes_SOLUSD_20241115
["timestamp","ask_amount","ask_price","bid_price","bid_amount"]
[1731659112112,11.8619043,209.38,209.32,0.12549]
[1731659112413,11.8619043,209.35,209.29,4.778]
[1731659113586,16.6384043,209.36,209.29,16.6399043]
[1731659114209,11.8619043,209.35,209.29,4.778]
[1731659114809,27.7597043,209.37,209.3,11.9873943]
[1731659115016,18.4919043,209.41,209.34,11.8619043]
[1731659115307,18.4919043,209.41,209.26,4.7787]
[1731659115308,11.8619043,209.36,209.29,11.8619043]
[1731659115684,11.8619043,209.36,209.25,6.1639]
[1731659115685,23.776884,209.4,209.24,4.7791]
[1731659115886,11.8619043,209.32,209.25,11.8619043]
[1731659116197,11.8619043,209.32,209.2,6.1338]
[1731659116198,11.8619043,209.29,209.22,11.8619043]
[1731659116505,11.8619043,209.26,209.19,11.8619043]
[1731659116804,4.7789,209.25,209.19,11.8619043]
[1731659116987,11.8619043,209.26,209.19,11.8619043]
[1731659117316,16.6405043,209.27,209.2,11.8619043]
[1731659117884,27.0618,209.32,209.24,11.8619043]
[1731659117885,11.8619043,209.31,209.24,11.8619043]
[1731659118084,15.1183,209.32,209.27,11.8619043]
[1731659118310,15.1183,209.32,209.19,0.1]
[1731659118311,15.1183,209.32,209.28,11.8619043]
[1731659118811,4.7765,209.36,209.31,11.8619043]
[1731659118986,4.7765,209.36,209.32,11.8619043]
[1731659119338,4.7765,209.36,209.3,11.8619043]
[1731659120403,11.8619043,209.35,209.28,11.8619043]
[1731659120590,11.8619043,209.34,209.27,11.8619043]
[1731659121899,4.7771,209.33,209.27,11.8619043]
[1731659122094,16.6386043,209.35,209.29,11.8619043]
[1731659122302,11.8619043,209.37,209.3,11.8619043]
[1731659122498,15.0942,209.38,209.32,11.8619043]
[1731659122903,19.8703,209.38,209.32,11.8619043]
[1731659123097,31.7322043,209.38,209.31,11.8619043]
[1731659123294,11.8619043,209.37,209.3,11.8619043]
[1731659123492,19.8703,209.38,209.27,11.8619043]
[1731659123493,11.8619043,209.34,209.27,11.8619043]
[1731659123997,11.8619043,209.33,209.26,11.8619043]
[1731659124318,24.7762,209.37,209.24,4.779]
[1731659124319,11.8619043,209.34,209.27,11.8619043]
[1731659124489,11.8619043,209.33,209.26,11.8619043]
[1731659124688,11.8619043,209.29,209.22,11.8619043]
[1731659124908,11.8619043,209.27,209.2,16.6420043]
[1731659125288,11.8619043,209.29,209.22,11.8619043]
[1731659125488,11.8619043,209.28,209.22,11.8619043]
[1731659126007,11.8619043,209.29,209.23,11.8619043]
[1731659126189,6.4261,209.31,209.23,11.8619043]
[1731659126190,18.2880043,209.31,209.24,11.8619043]
[1731659126390,11.8619043,209.3,209.23,11.8619043]
[1731659126603,11.8619043,209.27,209.2,11.8619043]
[1731659127014,11.8619043,209.26,209.2,11.8619043]
[1731659127394,11.8619043,209.25,209.19,11.8619043]
[1731659127689,43.902374,209.3,209.11,94.187205]
[1731659127911,43.902374,209.3,209.16,11.8619043]
[1731659128111,11.8619043,209.22,209.15,11.8619043]
[1731659129189,11.8619043,209.2,209.13,11.8619043]
[1731659129509,16.6421043,209.2,209.13,11.8619043]
[1731659129691,16.6421043,209.2,209.07,4.783]
[1731659129692,11.8619043,209.18,209.11,11.8619043]
[1731659131102,11.8619043,209.19,209.12,11.8619043]
[1731659131415,11.8619043,209.18,209.11,11.8619043]
[1731659132312,4.7801,209.2,209.13,11.8619043]
[1731659132518,11.8619043,209.2,209.13,11.8619043]
[1731659132719,11.8619043,209.19,209.13,11.8619043]
[1731659133496,11.8619043,209.19,209.12,11.8619043]
[1731659133696,16.6423043,209.19,209.12,11.8619043]
[1731659134096,11.8619043,209.15,209.08,11.8619043]
[1731659134297,11.8619043,209.12,209.05,16.6454043]
[1731659134500,43.902374,209.17,209.03,5.2585029]
[1731659134699,23.776884,209.14,209.03,5.2585029]
[1731659134899,20.0,209.15,209.03,5.2585029]
[1731659135407,20.0,209.15,209.03,0.4747029]
[1731659135408,4.7819,209.12,209.03,0.4747029]
[1731659135596,4.7819,209.12,209.03,5.2586029]
[1731659135800,11.8619043,209.11,209.04,11.8619043]
[1731659137222,16.4851,209.16,209.04,11.8619043]
[1731659137223,11.8619043,209.13,209.07,11.8619043]
[1731659137396,11.8619043,209.13,209.06,11.8619043]
[1731659137602,11.8619043,209.13,209.05,11.8619043]
[1731659137814,11.8619043,209.12,209.05,11.8619043]
[1731659138015,33.1280043,209.16,209.09,11.8619043]
[1731659138216,16.4851,209.16,209.09,11.8619043]
[1731659138804,16.4851,209.16,209.11,11.8619043]
[1731659139418,28.3470043,209.16,209.1,11.8619043]
[1731659139613,16.4851,209.16,209.1,16.6441043]
[1731659140521,33.1281043,209.16,209.09,11.8619043]
[1731659140725,33.1281043,209.16,209.08,11.8619043]
[1731659140726,11.8619043,209.15,209.08,11.8619043]
[1731659141116,33.1281043,209.16,209.09,11.8619043]
[1731659141843,11.8619043,209.15,209.08,11.8619043]
[1731659142223,11.8619043,209.14,209.07,16.6448043]
[1731659142822,28.3470043,209.16,209.09,11.8619043]
[1731659143124,11.8619043,209.19,209.12,11.8619043]
[1731659143308,16.6422043,209.19,209.12,11.8619043]
[1731659144005,11.8619043,209.18,209.11,16.6439043]
[1731659144910,11.8619043,209.17,209.1,11.8619043]
[1731659146023,16.6426043,209.18,209.11,16.6440043]
[1731659146219,11.8619043,209.19,209.12,11.8619043]
[1731659147407,11.8619043,209.19,209.11,4.7821]
[1731659147408,11.8619043,209.19,209.13,11.8619043]
[1731659147929,11.8619043,209.2,209.13,11.8619043]
[1731659148435,11.8619043,209.2,209.13,16.6434043]
[1731659148610,21.068,209.21,209.13,16.6434043]
[1731659148611,28.1500043,209.21,209.14,11.8619043]
[1731659149134,16.2881,209.21,209.15,11.8619043]
[1731659149424,16.6410043,209.25,209.18,11.8619043]
[1731659149629,11.8619043,209.23,209.16,11.8619043]
[1731659150042,11.8619043,209.22,209.15,11.8619043]
[1731659150532,11.8619043,209.22,209.15,16.6430043]
[1731659150827,11.8619043,209.21,209.15,4.7811]
[1731659151028,16.6416043,209.22,209.15,16.6430043]
[1731659151325,11.8619043,209.23,209.16,11.8619043]
[1731659151535,7.45280906,209.25,209.18,11.8619043]
[1731659151536,11.8619043,209.25,209.18,11.8619043]
[1731659151833,15.0596,209.26,209.2,11.8619043]
[1731659152033,11.8619043,209.24,209.17,11.8619043]
[1731659152515,16.6413043,209.24,209.17,11.8619043]
[1731659152833,16.6413043,209.24,209.17,16.6426043]
[1731659153210,11.8619043,209.21,209.1,24.7824]
[1731659153530,36.6413043,209.24,209.17,11.8619043]
[1731659153725,11.8619043,209.22,209.16,11.8619043]
[1731659154222,11.8619043,209.21,209.15,11.8619043]
[1731659154529,11.8619043,209.22,209.15,16.6430043]
[1731659155226,16.6413043,209.24,209.18,11.8619043]
[1731659155434,16.6413043,209.24,209.17,11.8619043]
[1731659155635,11.8619043,209.25,209.18,11.8619043]
[1731659156710,16.6409043,209.25,209.18,16.6424043]
[1731659157236,26.9215043,209.26,209.19,11.8619043]
[1731659157711,15.0596,209.26,209.21,11.8619043]
[1731659158222,15.0596,209.26,209.2,11.8619043]
[1731659158525,15.0596,209.26,209.21,11.8619043]
[1731659158722,15.0596,209.26,209.21,16.6415043]
[1731659158921,15.0596,209.26,209.21,4.7796]
[1731659159513,15.0596,209.26,209.21,16.6415043]
[1731659160529,11.8619043,209.3,209.23,11.8619043]
[1731659160710,11.8619043,209.3,209.23,16.6411043]
[1731659160914,11.8619043,209.29,209.23,4.7792]
[1731659161434,11.8619043,209.24,209.11,43.776884]
[1731659161642,11.8619043,209.23,209.16,11.8619043]
[1731659162311,11.8619043,209.23,209.17,11.8619043]
[1731659162631,11.8619043,209.27,209.2,11.8619043]
[1731659162818,11.8619043,209.27,209.21,11.8619043]
[1731659163021,11.8619043,209.25,209.18,16.6424043]
[1731659163213,11.8619043,209.23,209.17,11.8619043]
[1731659163918,11.8619043,209.24,209.17,11.8619043]
[1731659164944,11.8619043,209.21,209.15,11.8619043]
[1731659165117,11.8619043,209.18,209.12,11.8619043]
[1731659165319,11.8619043,209.17,209.11,16.6440043]
[1731659165922,11.8619043,209.18,209.12,11.8619043]
[1731659166120,16.3852,209.22,209.16,11.8619043]
[1731659166337,28.2471043,209.22,209.15,11.8619043]
[1731659166639,28.2471043,209.22,209.13,16.6434043]
[1731659166640,11.8619043,209.2,209.13,16.6434043]
[1731659166845,11.8619043,209.18,209.11,16.6438043]
[1731659167631,33.0269043,209.22,209.15,11.8619043]
[1731659169330,33.0269043,209.22,209.12,11.8619043]
[1731659169331,11.8619043,209.18,209.12,11.8619043]
[1731659169828,11.8619043,209.19,209.12,11.8619043]
[1731659170746,11.8619043,209.2,209.13,11.8619043]
[1731659171148,16.6418043,209.21,209.14,11.8619043]
[1731659172032,11.8619043,209.19,209.13,16.6435043]
[1731659172945,11.8619043,209.19,209.13,4.7816]
[1731659173662,4.7801,209.2,209.14,11.8619043]
[1731659173863,11.8619043,209.2,209.13,11.8619043]
[1731659174026,11.8619043,209.21,209.14,11.8619043]
[1731659174231,11.8619043,209.2,209.13,11.8619043]
[1731659174448,11.8619043,209.21,209.14,11.8619043]
[1731659174840,11.8619043,209.24,209.17,11.8619043]
[1731659175035,11.8619043,209.25,209.18,11.8619043]
[1731659175956,16.6409043,209.25,209.18,11.8619043]
[1731659176361,11.8619043,209.26,209.19,11.8619043]
[1731659177454,11.8619043,209.26,209.19,16.6421043]
[1731659177633,16.6407043,209.26,209.19,16.6421043]
[1731659178058,28.0984043,209.27,209.2,11.8619043]
[1731659178241,0.1,209.35,209.23,11.8619043]
[1731659178242,11.8619043,209.3,209.23,11.8619043]
[1731659178451,11.8619043,209.28,209.21,11.8619043]
[1731659178640,11.8619043,209.29,209.22,11.8619043]
[1731659179042,11.8619043,209.28,209.21,11.8619043]
[1731659179439,16.6402043,209.28,209.21,16.6417043]
[1731659179633,11.8619043,209.26,209.19,16.6421043]
[1731659179843,11.8619043,209.25,209.19,4.7802]
[1731659180947,11.8619043,209.26,209.19,11.8619043]
[1731659181960,16.6407043,209.26,209.19,16.6421043]
[1731659182151,16.6407043,209.26,209.14,6.6384]
[1731659182152,11.8619043,209.25,209.18,11.8619043]
[1731659182455,11.8619043,209.24,209.17,11.8619043]
[1731659183455,11.8619043,209.24,209.09,21.10998269]
[1731659183456,11.8619043,209.2,209.13,11.8619043]
[1731659183765,11.8619043,209.18,209.11,11.8619043]
[1731659183943,11.8619043,209.22,209.15,11.8619043]
[1731659185059,11.8619043,209.22,209.15,16.6430043]
[1731659185563,16.6416043,209.22,209.15,16.6430043]
[1731659186845,11.8619043,209.2,209.13,11.8619043]
[1731659187159,11.8619043,209.17,209.1,11.8619043]
[1731659187840,11.8619043,209.18,209.11,11.8619043]
[1731659188465,11.8619043,209.2,209.13,11.8619043]
[1731659188761,11.8619043,209.21,209.15,11.8619043]
[1731659189142,4.7796,209.22,209.16,11.8619043]
[1731659190952,4.7796,209.22,209.15,4.7812]
[1731659191161,4.7796,209.22,209.16,11.8619043]
[1731659191459,16.1314,209.23,209.17,11.8619043]
[1731659192352,16.1314,209.23,209.18,11.8619043]
[1731659192560,16.6406043,209.26,209.19,11.8619043]
[1731659192865,4.7787,209.26,209.2,11.8619043]
[1731659193160,4.7787,209.26,209.21,11.8619043]
[1731659193561,11.8619043,209.27,209.21,16.6417043]
[1731659193743,16.4273,209.28,209.24,11.8619043]
[1731659194338,16.4273,209.28,209.23,11.8619043]
[1731659194541,16.4273,209.28,209.24,11.8619043]
[1731659195149,16.4273,209.28,209.23,11.8619043]
[1731659196364,16.4273,209.28,209.24,11.8619043]
[1731659197351,16.6397043,209.3,209.24,11.8619043]
[1731659197555,4.7778,209.3,209.24,11.8619043]
[1731659197756,20.0,209.32,209.27,11.8619043]
[1731659197757,4.7775,209.32,209.27,11.8619043]
[1731659198347,16.6394043,209.32,209.26,11.8619043]
[1731659198853,11.8619043,209.29,209.22,11.8619043]
[1731659199375,11.8619043,209.29,209.23,11.8619043]
[1731659200973,11.8619043,209.32,209.26,11.8619043]
[1731659201267,19.9866,209.33,209.22,4.7795]
[1731659201268,11.8619043,209.3,209.24,11.8619043]
[1731659202369,16.6397043,209.3,209.24,11.8619043]
[1731659203078,16.6394043,209.32,209.25,11.8619043]
[1731659203253,19.9866,209.33,209.28,11.8619043]
[1731659203458,19.9866,209.33,209.27,11.8619043]
[1731659203753,31.8485043,209.33,209.26,11.8619043]
[1731659204347,31.8485043,209.33,209.26,16.6405043]
[1731659204548,31.8485043,209.33,209.29,11.8619043]
[1731659204549,15.2094,209.33,209.29,11.8619043]
[1731659204767,15.2094,209.33,209.28,11.8619043]
[1731659204971,27.0713043,209.33,209.27,11.8619043]
[1731659205152,11.8619043,209.32,209.26,11.8619043]
[1731659205349,31.8484043,209.33,209.27,11.8619043]
[1731659208172,19.9865,209.33,209.27,11.8619043]
[1731659209981,19.9865,209.33,209.28,11.8619043]
[1731659210158,11.8619043,209.31,209.25,11.8619043]
[1731659211254,16.6396043,209.31,209.25,11.8619043]
[1731659211452,11.8619043,209.3,209.24,11.8619043]
[1731659211662,11.8619043,209.29,209.23,11.8619043]
[1731659212276,11.8619043,209.28,209.21,11.8619043]
[1731659212451,11.8619043,209.27,209.21,11.8619043]
[1731659212655,11.8619043,209.26,209.2,11.8619043]
[1731659213376,11.8619043,209.26,209.15,4.90669]
[1731659213553,11.8619043,209.23,209.16,11.8619043]
[1731659213755,11.8619043,209.23,209.15,4.7812]
[1731659213756,11.8619043,209.23,209.17,11.8619043]
[1731659213977,11.8619043,209.23,209.16,11.8619043]
[1731659214161,11.8619043,209.23,209.1,4.76001598]
[1731659214162,11.8619043,209.21,209.14,11.8619043]
[1731659214483,11.8619043,209.2,209.13,16.6434043]
[1731659214685,11.8619043,209.21,209.14,11.8619043]
[1731659215459,11.8619043,209.2,209.14,11.8619043]
[1731659215856,11.8619043,209.23,209.17,11.8619043]
[1731659216184,11.8619043,209.24,209.17,11.8619043]
[1731659216485,11.8619043,209.23,209.16,11.8619043]
[1731659216986,11.8619043,209.23,209.16,16.6428043]
[1731659217495,11.8619043,209.21,209.15,11.8619043]
[1731659217975,16.6413043,209.23,209.16,11.8619043]
[1731659218185,4.7794,209.23,209.17,11.8619043]
[1731659218571,16.6413043,209.23,209.17,11.8619043]
[1731659218767,11.8619043,209.24,209.18,11.8619043]
[1731659219173,32.8474043,209.25,209.19,11.8619043]
[1731659219379,11.8619043,209.24,209.18,11.8619043]
[1731659219963,16.6411043,209.24,209.18,11.8619043]
[1731659220683,11.8619043,209.23,209.16,11.8619043]
[1731659221663,11.8619043,209.23,209.16,16.6428043]
[1731659221865,11.8619043,209.2,209.14,16.6432043]
[1731659222171,16.6420043,209.2,209.14,11.8619043]
[1731659222374,16.6420043,209.2,209.13,11.8619043]
[1731659223780,16.6420043,209.2,209.13,16.6435043]
[1731659224488,16.2065,209.25,209.19,11.8619043]
[1731659224668,16.2065,209.25,209.2,11.8619043]
[1731659226268,11.8619043,209.24,209.17,16.6425043]
[1731659226579,20.9855,209.25,209.16,11.8619043]
[1731659226580,11.8619043,209.22,209.16,11.8619043]
[1731659226782,11.8619043,209.23,209.17,11.8619043]
[1731659227164,20.9855,209.25,209.2,11.8619043]
[1731659227365,11.8619043,209.26,209.2,11.8619043]
[1731659227782,0.06075,209.36,209.25,11.8619043]
[1731659227783,6.6385,209.35,209.25,11.8619043]
[1731659227992,15.6812,209.36,209.31,11.8619043]
[1731659228170,15.6812,209.36,209.32,11.8619043]
[1731659228487,11.8619043,209.39,209.22,0.1]
[1731659228488,6.6385,209.4,209.35,11.8619043]
[1731659228690,6.6385,209.4,209.32,11.8619043]
[1731659228691,11.8619043,209.39,209.32,11.8619043]
[1731659228982,11.8619043,209.37,209.3,11.8619043]
[1731659229186,0.12549,209.39,209.27,11.8619043]
[1731659229365,11.8619043,209.32,209.26,11.8619043]
[1731659229576,11.8619043,209.32,209.2,4.7798]
[1731659229577,11.8619043,209.32,209.25,11.8619043]
[1731659229878,11.8619043,209.32,209.26,11.8619043]
[1731659230076,16.6390043,209.33,209.26,11.8619043]
[1731659231783,11.8619043,209.36,209.29,11.8619043]
[1731659232274,11.8619043,209.35,209.28,11.8619043]
[1731659232880,11.8619043,209.35,209.29,11.8619043]
[1731659233195,11.8619043,209.36,209.3,11.8619043]
[1731659233388,11.8619043,209.36,209.29,11.8619043]
[1731659234089,11.8619043,209.36,209.29,16.6398043]
[1731659238279,11.8619043,209.37,209.3,11.8619043]
[1731659238484,11.8619043,209.39,209.33,11.8619043]
[1731659238683,18.5004043,209.4,209.34,11.8619043]
[1731659238890,11.8619043,209.39,209.33,11.8619043]
[1731659239426,15.6812,209.41,209.35,11.8619043]
[1731659239590,15.6812,209.41,209.37,11.8619043]
[1731659239986,11.8619043,209.4,209.34,11.8619043]
[1731659241297,11.8619043,209.4,209.34,16.6387043]
[1731659241793,32.3184043,209.41,209.34,16.6387043]
[1731659241995,15.6812,209.41,209.36,11.8619043]
[1731659244578,15.6812,209.41,209.37,11.8619043]
[1731659245403,15.6812,209.41,209.36,11.8619043]
[1731659246200,6.3538,209.45,209.37,11.8619043]
[1731659246386,16.97080221,209.46,209.43,11.8619043]
[1731659246387,33.14210221,209.46,209.43,11.8619043]
[1731659246714,33.14210221,209.46,209.44,11.8619043]
[1731659246891,11.8619043,209.45,209.32,4.7773]
[1731659247081,11.8619043,209.42,209.36,11.8619043]
[1731659247283,11.8619043,209.39,209.33,11.8619043]
[1731659247481,11.8619043,209.39,209.32,16.6392043]
[1731659248098,11.8619043,209.39,209.33,11.8619043]
[1731659248404,11.8619043,209.38,209.32,11.8619043]
[1731659248592,16.6374043,209.4,209.34,11.8619043]
[1731659248799,16.6374043,209.4,209.28,4.90369]
[1731659248800,11.8619043,209.41,209.35,11.8619043]
[1731659248993,22.7930043,209.42,209.36,11.8619043]
[1731659249188,6.1559,209.42,209.36,11.8619043]
[1731659249410,40.61771113,209.46,209.28,4.90369]
[1731659249411,11.8619043,209.44,209.38,11.8619043]
[1731659250197,11.8619043,209.42,209.36,11.8619043]
[1731659250782,11.8619043,209.42,209.36,16.6383043]
[1731659251184,11.8619043,209.43,209.36,16.6383043]
[1731659251600,11.8619043,209.41,209.34,11.8619043]
[1731659252306,11.8619043,209.38,209.32,11.8619043]
[1731659252514,11.8619043,209.4,209.33,11.8619043]
[1731659252806,11.8619043,209.39,209.32,11.8619043]
[1731659253611,11.8619043,209.38,209.31,11.8619043]
[1731659253793,23.776884,209.43,209.31,11.8619043]
[1731659253794,11.8619043,209.39,209.32,11.8619043]
[1731659254998,11.8619043,209.39,209.33,4.7771]
[1731659256317,11.8619043,209.37,209.31,4.7776]
[1731659256609,11.8619043,209.39,209.32,11.8619043]
[1731659257798,11.8619043,209.39,209.33,4.7771]
[1731659258620,16.6377043,209.39,209.33,4.7771]
[1731659258811,12.37037218,209.39,209.33,4.7771]
[1731659260016,7.59457218,209.39,209.33,4.7771]
[1731659260510,7.59457218,209.39,209.31,4.7774]
[1731659260511,7.59457218,209.36,209.31,4.7774]
[1731659260718,7.59457218,209.34,209.29,4.7779]
[1731659261309,7.59457218,209.33,209.23,4.7794]
[1731659261498,7.59457218,209.31,209.25,7.59457218]
[1731659262422,7.59457218,209.3,209.23,7.59457218]
[1731659262594,7.59457218,209.29,209.23,4.7792]
[1731659262914,7.59457218,209.24,209.17,12.37537218]
[1731659263224,7.59457218,209.23,209.17,4.7808]
[1731659263392,7.59457218,209.22,209.17,4.7808]
[1731659264218,7.59457218,209.22,209.16,7.59457218]
[1731659264419,7.59457218,209.21,209.15,7.59457218]
[1731659264795,11.88643021,209.21,209.15,11.88643021]
[1731659265796,11.88643021,209.21,209.15,16.66753021]
[1731659266594,11.88643021,209.2,209.14,11.88643021]
[1731659266912,11.88643021,209.19,209.13,4.7815]
[1731659267098,4.7787,209.26,209.13,4.7815]
[1731659267099,11.88643021,209.17,209.13,4.7815]
[1731659267298,11.88643021,209.18,209.13,4.7815]
[1731659267509,11.88643021,209.19,209.13,4.7815]
[1731659268411,11.88643021,209.23,209.16,11.88643021]
[1731659268609,11.88643021,209.24,209.17,11.88643021]
[1731659269516,11.88643021,209.26,209.2,11.88643021]
[1731659269702,27.1738,209.29,209.18,4.7805]
[1731659269703,11.88643021,209.23,209.18,4.7805]
[1731659270920,11.88643021,209.22,209.16,11.88643021]
[1731659271293,11.88643021,209.23,209.16,16.66733021]
[1731659272220,11.88643021,209.23,209.17,11.88643021]
[1731659272401,11.88643021,209.25,209.19,11.88643021]
[1731659272901,11.88643021,209.26,209.19,16.66673021]
[1731659273104,23.776884,209.28,209.19,16.66673021]
[1731659273105,11.88643021,209.25,209.19,16.66673021]
[1731659273319,11.88643021,209.23,209.19,4.7803]
[1731659274311,11.88643021,209.23,209.17,11.88643021]
[1731659275311,11.88643021,209.22,209.16,11.88643021]
[1731659275509,11.88643021,209.2,209.14,11.88643021]
[1731659277002,11.88643021,209.21,209.15,11.88643021]
[1731659277511,23.776884,209.25,209.17,11.88643021]
[1731659277713,11.88643021,209.24,209.17,11.88643021]
[1731659277911,11.88643021,209.22,209.15,11.88643021]
[1731659278106,11.88643021,209.21,209.15,11.88643021]
[1731659278329,11.88643021,209.2,209.14,11.88643021]
[1731659278707,11.88643021,209.21,209.14,11.88643021]
[1731659278903,20.0,209.26,209.14,11.88643021]
[1731659279118,11.88643021,209.22,209.16,11.88643021]
[1731659279326,11.88643021,209.21,209.15,11.88643021]
[1731659280025,11.88643021,209.21,209.14,11.88643021]
[1731659280729,24.7794,209.24,209.12,20.12549]
[1731659280730,11.88643021,209.22,209.16,11.88643021]
[1731659281233,11.88643021,209.21,209.15,11.88643021]
[1731659281422,11.88643021,209.22,209.16,11.88643021]
[1731659281616,11.88643021,209.24,209.18,16.66693021]
[1731659282509,11.88643021,209.23,209.18,4.7805]
[1731659282705,28.555684,209.26,209.18,4.7805]
[1731659282706,11.88643021,209.22,209.18,4.7805]
[1731659284727,11.88643021,209.2,209.14,11.88643021]
[1731659285040,11.88643021,209.15,209.1,16.4878]
[1731659285235,11.88643021,209.15,209.11,4.782]
[1731659285845,11.88643021,209.18,209.12,11.88643021]
[1731659286551,11.88643021,209.18,209.11,16.66843021]
[1731659289842,11.88643021,209.18,209.12,11.88643021]
[1731659291038,35.96883505,209.26,209.1,16.4878]
[1731659291039,11.88643021,209.19,209.13,16.66813021]
[1731659291453,11.88643021,209.2,209.14,11.88643021]
[1731659292733,11.88643021,209.2,209.15,4.7812]
[1731659293536,11.88643021,209.19,209.15,4.7812]
[1731659294244,11.88643021,209.19,209.12,11.88643021]
[1731659294831,11.88643021,209.17,209.11,11.88643021]
[1731659295145,11.88643021,209.15,209.11,4.7821]
[1731659295531,11.88643021,209.13,209.09,4.7824]
[1731659295757,11.88643021,209.1,209.05,15.5841]
[1731659296052,11.88643021,209.09,209.05,20.3674]
[1731659296548,11.88643021,209.09,209.03,5.2585029]
[1731659296726,11.88643021,209.08,209.03,5.2585029]
[1731659297428,11.88643021,209.08,209.04,4.7837]
[1731659298350,28.43089518,209.2,209.08,4.7828]
[1731659298526,11.88643021,209.17,209.1,11.88643021]
[1731659298727,11.88643021,209.18,209.12,11.88643021]
[1731659299025,11.88643021,209.17,209.11,11.88643021]
[1731659299338,11.88643021,209.19,209.12,11.88643021]
[1731659299730,11.88643021,209.18,209.12,11.88643021]
[1731659300330,11.88643021,209.19,209.12,11.88643021]
[1731659301045,11.88643021,209.16,209.1,11.88643021]
[1731659301237,11.88643021,209.13,209.06,11.88643021]
[1731659301437,35.66331421,209.11,209.04,16.67013021]
[1731659301750,11.88643021,209.09,209.04,4.7837]
[1731659302128,35.66331421,209.1,209.04,16.67013021]
[1731659302942,11.88643021,209.09,209.04,4.7837]
[1731659303353,11.88643021,209.06,209.03,0.4747029]
[1731659303533,11.88643021,209.05,209.03,0.4747029]
[1731659305452,23.776884,209.1,209.03,0.4747029]
[1731659305453,35.66331421,209.04,209.03,0.4747029]
[1731659307854,11.88643021,209.08,209.03,0.4747029]
[1731659308740,11.88643021,209.05,209.03,0.4747029]
[1731659308949,11.88643021,209.04,209.03,0.4747029]
[1731659309944,35.66331421,209.04,209.03,0.4747029]
[1731659310453,11.88643021,209.06,209.03,0.4747029]
[1731659310653,23.776884,209.06,209.03,0.4747029]
[1731659310864,11.88643021,209.08,209.03,5.2584029]
[1731659311151,23.776884,209.07,209.03,5.2584029]
[1731659312342,16.3913,209.16,209.03,17.14483311]
[1731659312533,11.88643021,209.1,209.03,17.14483311]
[1731659312955,11.88643021,209.09,209.03,5.2584029]
[1731659313935,23.776884,209.08,209.03,5.2584029]
[1731659314751,23.776884,209.08,209.03,17.14483311]
[1731659314960,7.47386942,209.15,209.07,11.88643021]
[1731659315255,11.88643021,209.14,209.07,11.88643021]
[1731659315452,11.88643021,209.13,209.07,11.88643021]
[1731659316253,7.47186775,209.18,209.1,11.88643021]
[1731659316442,161.6,209.21,209.1,11.88643021]
[1731659316443,11.88643021,209.17,209.1,11.88643021]
[1731659316756,11.88643021,209.15,209.08,11.88643021]
[1731659316957,11.88643021,209.14,209.08,11.88643021]
[1731659317334,11.88643021,209.14,209.06,16.1637]
[1731659317335,11.88643021,209.13,209.07,11.88643021]
[1731659317557,11.88643021,209.13,209.07,16.66943021]
[1731659318055,11.88643021,209.14,209.07,16.66943021]
[1731659318446,23.776884,209.14,209.08,11.88643021]
[1731659318641,23.776884,209.14,209.07,4.783]
[1731659318642,23.776884,209.14,209.09,11.88643021]
[1731659318952,11.88643021,209.16,209.1,11.88643021]
[1731659319155,11.88643021,209.16,209.09,11.88643021]
[1731659319543,11.88643021,209.15,209.08,11.88643021]
[1731659319950,11.88643021,209.16,209.09,12.01192021]
[1731659320539,11.88643021,209.17,209.1,16.66883021]
[1731659321638,11.88643021,209.14,209.08,11.88643021]
[1731659321840,4.7804,209.19,209.08,11.88643021]
[1731659321841,11.88643021,209.15,209.08,11.88643021]
[1731659322249,11.88643021,209.14,209.08,11.88643021]
[1731659323047,11.88643021,209.1,209.06,16.1637]
[1731659324367,11.88643021,209.09,209.04,4.7835]
[1731659325567,11.88643021,209.08,209.04,4.7835]
[1731659326560,11.88643021,209.07,209.04,4.7835]
[1731659329970,11.88643021,209.08,209.04,4.7835]
[1731659330366,11.88643021,209.09,209.04,4.7835]
[1731659331252,11.88643021,209.1,209.04,4.7835]
[1731659331454,11.88643021,209.12,209.05,11.88643021]
[1731659331655,11.88643021,209.13,209.06,11.88643021]
[1731659331861,11.88643021,209.13,209.07,11.88643021]
[1731659332150,11.88643021,209.14,209.07,11.88643021]
[1731659332570,7.47387654,209.19,209.09,11.88643021]
[1731659332571,11.88643021,209.16,209.09,11.88643021]
[1731659332761,11.88643021,209.17,209.1,11.88643021]
[1731659333657,11.88643021,209.17,209.11,11.88643021]
[1731659334264,11.88643021,209.17,209.1,11.88643021]
[1731659335468,11.88643021,209.14,209.1,4.7824]
[1731659336961,11.88643021,209.16,209.1,16.66883021]
[1731659337165,40.44421421,209.17,209.1,16.66883021]
[1731659338062,11.88643021,209.15,209.1,4.7824]
[1731659338573,11.88643021,209.15,209.09,11.88643021]
[1731659338750,11.88643021,209.15,209.09,16.66903021]
[1731659339372,11.88643021,209.15,209.09,4.7826]
[1731659339688,11.88643021,209.15,209.03,0.4747029]
[1731659339689,11.88643021,209.12,209.07,4.7829]
[1731659339976,11.88643021,209.11,209.07,4.7829]